fUSD/lending_fUSD_20240613
["ID","MTS","AMOUNT","RATE_DAILY","PERIOD"]
[329372411,1718290364500,-587.76,0.00026575,3]
[329372412,1718290364565,-605.86,0.00026575,3]
[329372413,1718290364600,-500.0,0.00026575,3]
[329372414,1718290364644,-1177.4,0.00026575,3]
[329372415,1718290364666,-920.47,0.00026575,3]
[329372416,1718290364686,-500.0,0.00026575,3]
[329372417,1718290364731,-1386.9,0.00026575,3]
[329372418,1718290364763,-744.26,0.00026575,3]
[329372419,1718290364775,-887.49,0.00026575,3]
[329372420,1718290364806,-500.0,0.00026575,3]
[329372421,1718290364855,-500.0,0.00026575,3]
[329372422,1718290364889,-7491.49,0.00026575,3]
[329372423,1718290364908,-500.0,0.00026575,3]
[329372424,1718290364925,-2324.66,0.00026575,3]
[329372425,1718290364946,-500.0,0.00026575,3]
[329372426,1718290364976,-1842.78,0.00026575,3]
[329372427,1718290364990,-2097.92,0.00026575,3]
[329372428,1718290365005,-150.0,0.000266,5]
[329372429,1718290365058,-203.0,0.0002665,2]
[329372430,1718290365093,-588.7587664,0.00026849,3]
[329372431,1718290365138,-500.0,0.00026849,3]
[329372432,1718290365150,-172.7411639,0.00026849,3]
[329372433,1718290365162,-500.0,0.00026849,3]
[329372434,1718290365181,-500.0,0.00026849,3]
[329372435,1718290365193,-500.0,0.00026849,3]
[329372436,1718290365205,-500.0,0.00026849,3]
[329372437,1718290365229,-500.0,0.00026849,3]
[329372438,1718290365252,-500.0,0.00026849,3]
[329372439,1718290365280,-500.0,0.00026849,3]
[329372440,1718290365291,-500.0,0.00026849,3]
[329372441,1718290365303,-500.98,0.00026849,3]
[329372442,1718290365314,-500.0,0.00026849,3]
[329372443,1718290365328,-500.0,0.00026849,3]
[329372444,1718290365339,-500.0,0.00026849,3]
[329372445,1718290365351,-500.0,0.00026849,3]
[329372446,1718290365372,-182.27,0.00026849,3]
[329372447,1718290365386,-500.0,0.00026849,3]
[329372448,1718290365414,-222.54,0.00026849,3]
[329372449,1718290365428,-809.41,0.00026849,3]
[329372450,1718290365445,-507.94,0.00026849,3]
[329372451,1718290365457,-500.0,0.00026849,3]
[329372452,1718290365469,-500.0,0.00026849,3]
[329372453,1718290365480,-500.0,0.00026849,3]
[329372454,1718290365536,-500.0,0.00026849,3]
[329372455,1718290365548,-500.0,0.00026849,3]
[329372456,1718290365560,-500.0,0.00026849,3]
[329372457,1718290365571,-1934.26,0.00026849,3]
[329372458,1718290365600,-544.35,0.00026849,3]
[329372459,1718290365624,-500.0,0.00026849,3]
[329372460,1718290365652,-879.88,0.00026849,3]
[329372461,1718290365688,-500.0,0.00026849,3]
[329372462,1718290365716,-500.0,0.00026849,3]
[329372463,1718290365735,-1048.93,0.00026849,3]
[329372464,1718290365773,-1012.91,0.00026849,3]
[329372465,1718290365793,-500.0,0.00026849,3]
[329372466,1718290365833,-500.0,0.00026849,3]
[329372467,1718290365851,-11632.61,0.00026849,3]
[329372468,1718290365896,-977.44,0.00026849,3]
[329372469,1718290365920,-500.0,0.00026849,3]
[329372470,1718290365956,-651.87,0.00026849,3]
[329372471,1718290365973,-639.07,0.00026849,3]
[329372472,1718290365998,-997.51,0.00026849,3]
[329372473,1718290366056,-1311.35,0.00026849,3]
[329372474,1718290366092,-643.19,0.00026849,3]
[329372475,1718290366106,-2199.7,0.00026849,3]
[329372476,1718290366122,-500.0,0.00026849,3]
[329372477,1718290366152,-1295.74,0.00026849,3]
[329372478,1718290366168,-613.68,0.00026849,3]
[329372479,1718290366195,-1323.91,0.00026849,3]
[329372480,1718290366238,-975.22,0.00026849,3]
[329372481,1718290366250,-1550.77,0.00026849,3]
[329372482,1718290366264,-500.0,0.00026849,3]
[329372483,1718290366280,-12766.99,0.00026849,3]
[329372484,1718290366293,-513.36,0.00026849,3]
[329372485,1718290366318,-500.0,0.00026849,3]
[329372486,1718290366333,-559.41,0.00026849,3]
[329372487,1718290366349,-500.0,0.00026849,3]
[329372488,1718290366367,-500.0,0.00026849,3]
[329372489,1718290366404,-679.33,0.00026849,3]
[329372490,1718290366427,-500.0,0.00026849,3]
[329372491,1718290366440,-3794.7,0.00026849,3]
[329372492,1718290366456,-500.0,0.00026849,3]
[329372493,1718290366479,-500.0,0.00026849,3]
[329372494,1718290366513,-500.0,0.00026849,3]
[329372495,1718290366532,-500.0,0.00026849,3]
[329372496,1718290366554,-500.0,0.00026849,3]
[329372497,1718290366605,-1057.5,0.00026849,3]
[329372498,1718290366619,-500.0,0.00026849,3]
[329372499,1718290366649,-500.0,0.00026849,3]
[329372500,1718290366662,-2414.22,0.00026849,3]
[329372501,1718290366686,-500.0,0.00026849,3]
[329372502,1718290366698,-500.0,0.00026849,3]
[329372503,1718290366720,-500.0,0.00026849,3]
[329372504,1718290366737,-654.22,0.00026849,3]
[329372505,1718290366751,-500.0,0.00026849,3]
[329372506,1718290366774,-1125.9,0.00026849,3]
[329372507,1718290366795,-500.0,0.00026849,3]
[329372508,1718290366814,-941.25,0.00026849,3]
[329372509,1718290366836,-596.7820027,0.00026849,3]
[329372510,1718290366851,-500.0,0.00026849,3]
[329372511,1718290366863,-531.14,0.00026849,3]
[329372512,1718290366876,-500.0,0.00026849,3]
[329372513,1718290366888,-500.0,0.00026849,3]
[329372514,1718290366904,-1033.7,0.00026849,3]
[329372515,1718290366922,-500.0,0.00026849,3]
[329372516,1718290366933,-500.0,0.00026849,3]
[329372517,1718290366968,-2592.34,0.00026849,3]
[329372518,1718290366983,-500.0,0.00026849,3]
[329372519,1718290366994,-500.0,0.00026849,3]
[329372520,1718290367010,-500.0,0.00026849,3]
[329372521,1718290367028,-588.3,0.00026849,3]
[329372522,1718290367043,-500.0,0.00026849,3]
[329372523,1718290367076,-500.0,0.00026849,3]
[329372524,1718290367111,-1292.93,0.00026849,3]
[329372525,1718290367150,-637.83,0.00026849,3]
[329372526,1718290367166,-533.76,0.00026849,3]
[329372527,1718290367185,-816.12,0.00026849,3]
[329372528,1718290367215,-2201.98,0.00026849,3]
[329372529,1718290367227,-990.35,0.00026849,3]
[329372530,1718290367246,-866.3,0.00026849,3]
[329372531,1718290367261,-1039.78,0.00026849,3]
[329372532,1718290367301,-1827.63,0.00026849,3]
[329372533,1718290367317,-1377.98,0.00026849,3]
[329372534,1718290367336,-511.34,0.00026849,3]
[329372535,1718290367351,-500.0,0.00026849,3]
[329372536,1718290367371,-1395.84,0.00026849,3]
[329372537,1718290367383,-4825.81,0.00026849,3]
[329372538,1718290367401,-653.41,0.00026849,3]
[329372539,1718290367424,-500.0,0.00026849,3]
[329372540,1718290367444,-500.0,0.00026849,3]
[329372541,1718290367480,-689.6,0.00026849,3]
[329372542,1718290367509,-2127.64,0.00026849,3]
[329372543,1718290367524,-761.09,0.00026849,3]
[329372544,1718290367550,-500.0,0.00026849,3]
[329372545,1718290367562,-587.76,0.00026849,3]
[329372546,1718290367573,-605.86,0.00026849,3]
[329372547,1718290367597,-500.0,0.00026849,3]
[329372548,1718290367612,-1177.4,0.00026849,3]
[329372549,1718290367625,-920.47,0.00026849,3]
[329372550,1718290367637,-500.0,0.00026849,3]
[329372551,1718290367656,-1386.9,0.00026849,3]
[329372552,1718290367672,-744.26,0.00026849,3]
[329372553,1718290367685,-887.49,0.00026849,3]
[329372554,1718290367700,-500.0,0.00026849,3]
[329372555,1718290367711,-500.0,0.00026849,3]
[329372556,1718290367730,-7491.49,0.00026849,3]
[329372557,1718290367744,-2324.66,0.00026849,3]
[329372558,1718290367760,-500.0,0.00026849,3]
[329372559,1718290367776,-1842.78,0.00026849,3]
[329372560,1718290367800,-10075.82718651,0.0002688,2]
[329372561,1718290367820,-4406.12,0.00026999,30]
[329372562,1718290367835,-150.0,0.00026999,7]
[329372563,1718290367850,-5000.0,0.00027,7]
[329372564,1718290367870,-75070.09,0.00027,2]
[329372565,1718290367882,-1364.56,0.00027,2]
[329372566,1718290367895,-150.0,0.00027,2]
[329372567,1718290368111,-300.0,0.00027,7]
[329372568,1718290368126,-200.0,0.00027,2]
[329372569,1718290368140,-5003.7,0.00027011,2]
[329372570,1718290368174,-5000.0,0.00027041,2]
[329372571,1718290368192,-5000.0,0.00027077,2]
[329372572,1718290368215,-150.0,0.000271,5]
[329372573,1718290368231,-500.0,0.00027122,2]
[329372574,1718290368255,-700.0,0.00027122,2]
[329372575,1718290368265,-3000.0,0.00027122,2]
[329372576,1718290368282,-500.0,0.00027123,3]
[329372577,1718290368298,-189.27,0.00027123,3]
[329372578,1718290368309,-500.0,0.00027123,3]
[329372579,1718290368320,-500.0,0.00027123,3]
[329372580,1718290368339,-196.17906371,0.00027123,3]
[329372581,1718290368352,-500.0,0.00027123,3]
[329372582,1718290368367,-500.0,0.00027123,3]
[329372583,1718290368380,-500.0,0.00027123,3]
[329372584,1718290368394,-500.0,0.00027123,3]
[329372585,1718290368406,-500.98,0.00027123,3]
[329372586,1718290368419,-500.0,0.00027123,3]
[329372587,1718290368437,-500.0,0.00027123,3]
[329372588,1718290368453,-500.0,0.00027123,3]
[329372589,1718290368474,-500.0,0.00027123,3]
[329372590,1718290368496,-182.27,0.00027123,3]
[329372591,1718290368524,-500.0,0.00027123,3]
[329372592,1718290368543,-809.41,0.00027123,3]
[329372593,1718290368567,-507.94,0.00027123,3]
[329372594,1718290368592,-500.0,0.00027123,3]
[329372595,1718290368619,-278.65168733,0.00027123,3]
[329372596,1718290368647,-500.0,0.00027123,3]
[329372597,1718290368673,-500.0,0.00027123,3]
[329372598,1718290368690,-500.0,0.00027123,3]
[329372599,1718290368713,-500.0,0.00027123,3]
[329372600,1718290368743,-1934.26,0.00027123,3]
[329372601,1718290368757,-544.35,0.00027123,3]
[329372602,1718290368781,-500.0,0.00027123,3]
[329372603,1718290368793,-879.88,0.00027123,3]
[329372604,1718290368824,-500.0,0.00027123,3]
[329372605,1718290368838,-500.0,0.00027123,3]
[329372606,1718290368857,-1048.93,0.00027123,3]
[329372607,1718290368874,-1012.91,0.00027123,3]
[329372608,1718290368892,-500.0,0.00027123,3]
[329372609,1718290368904,-500.0,0.00027123,3]
[329372610,1718290368916,-11632.61,0.00027123,3]
[329372611,1718290368931,-977.44,0.00027123,3]
[329372612,1718290368956,-500.0,0.00027123,3]
[329372613,1718290368968,-651.87,0.00027123,3]
[329372614,1718290369005,-639.07,0.00027123,3]
[329372615,1718290369039,-997.51,0.00027123,3]
[329372616,1718290369050,-1311.35,0.00027123,3]
[329372617,1718290369064,-643.19,0.00027123,3]
[329372618,1718290369085,-2199.7,0.00027123,3]
[329372619,1718290369096,-500.0,0.00027123,3]
[329372620,1718290369114,-1295.74,0.00027123,3]
[329372621,1718290369124,-613.68,0.00027123,3]
[329372622,1718290369138,-1323.91,0.00027123,3]
[329372623,1718290369148,-975.22,0.00027123,3]
[329372624,1718290369159,-1550.77,0.00027123,3]
[329372625,1718290369174,-500.0,0.00027123,3]
[329372626,1718290369189,-12766.99,0.00027123,3]
[329372627,1718290369204,-513.36,0.00027123,3]
[329372628,1718290369214,-500.0,0.00027123,3]
[329372629,1718290369227,-559.41,0.00027123,3]
[329372630,1718290369239,-500.0,0.00027123,3]
[329372631,1718290369253,-500.0,0.00027123,3]
[329372632,1718290369265,-679.33,0.00027123,3]
[329372633,1718290369282,-500.0,0.00027123,3]
[329372634,1718290369295,-3794.7,0.00027123,3]
[329372635,1718290369307,-500.0,0.00027123,3]
[329372636,1718290369324,-184.94836799,0.00027123,3]
[329372637,1718290369338,-500.0,0.00027123,3]
[329372638,1718290369357,-500.0,0.00027123,3]
[329372639,1718290369380,-500.0,0.00027123,3]
[329372640,1718290369392,-1057.5,0.00027123,3]
[329372641,1718290369406,-500.0,0.00027123,3]
[329372642,1718290369419,-500.0,0.00027123,3]
[329372643,1718290369433,-2414.22,0.00027123,3]
[329372644,1718290369452,-500.0,0.00027123,3]
[329372645,1718290369467,-500.0,0.00027123,3]
[329372646,1718290369478,-500.0,0.00027123,3]
[329372647,1718290369492,-654.22,0.00027123,3]
[329372648,1718290369503,-500.0,0.00027123,3]
[329372649,1718290369531,-1125.9,0.00027123,3]
[329372650,1718290369556,-500.0,0.00027123,3]
[329372651,1718290369569,-941.25,0.00027123,3]
[329372652,1718290369581,-500.0,0.00027123,3]
[329372653,1718290369593,-531.14,0.00027123,3]
[329372654,1718290369607,-500.0,0.00027123,3]
[329372655,1718290369628,-500.0,0.00027123,3]
[329372656,1718290369641,-1033.7,0.00027123,3]
[329372657,1718290369661,-500.0,0.00027123,3]
[329372658,1718290369675,-500.0,0.00027123,3]
[329372659,1718290369686,-2592.34,0.00027123,3]
[329372660,1718290369704,-500.0,0.00027123,3]
[329372661,1718290369718,-500.0,0.00027123,3]
[329372662,1718290369731,-189.4705968,0.00027123,3]
[329372663,1718290369747,-588.3,0.00027123,3]
[329372664,1718290369761,-500.0,0.00027123,3]
[329372665,1718290369781,-500.0,0.00027123,3]
[329372666,1718290369798,-1292.93,0.00027123,3]
[329372667,1718290369815,-637.83,0.00027123,3]
[329372668,1718290369826,-533.76,0.00027123,3]
[329372669,1718290369838,-816.12,0.00027123,3]
[329372670,1718290369850,-2201.98,0.00027123,3]
[329372671,1718290369863,-990.35,0.00027123,3]
[329372672,1718290369875,-866.3,0.00027123,3]
[329372673,1718290369895,-1039.78,0.00027123,3]
[329372674,1718290369914,-1827.63,0.00027123,3]
[329372675,1718290369927,-1377.98,0.00027123,3]
[329372676,1718290369941,-511.34,0.00027123,3]
[329372677,1718290369955,-500.0,0.00027123,3]
[329372678,1718290369968,-1395.84,0.00027123,3]
[329372679,1718290369987,-4825.81,0.00027123,3]
[329372680,1718290370000,-653.41,0.00027123,3]
[329372681,1718290370018,-500.0,0.00027123,3]
[329372682,1718290370035,-500.0,0.00027123,3]
[329372683,1718290370050,-689.6,0.00027123,3]
[329372684,1718290370062,-2127.64,0.00027123,3]
[329372685,1718290370082,-761.09,0.00027123,3]
[329372686,1718290370095,-500.0,0.00027123,3]
[329372687,1718290370109,-587.76,0.00027123,3]
[329372688,1718290370131,-605.86,0.00027123,3]
[329372689,1718290370143,-500.0,0.00027123,3]
[329372690,1718290370155,-1177.4,0.00027123,3]
[329372691,1718290370167,-920.47,0.00027123,3]
[329372692,1718290370183,-500.0,0.00027123,3]
[329372693,1718290370201,-1386.9,0.00027123,3]
[329372694,1718290370262,-744.26,0.00027123,3]
[329372695,1718290370281,-887.49,0.00027123,3]
[329372696,1718290370298,-500.0,0.00027123,3]
[329372697,1718290370310,-500.0,0.00027123,3]
[329372698,1718290370340,-7491.49,0.00027123,3]
[329372699,1718290370376,-2324.66,0.00027123,3]
[329372700,1718290370394,-500.0,0.00027123,3]
[329372701,1718290370406,-1842.78,0.00027123,3]
[329372702,1718290370426,-5003.7,0.00027134,2]
[329372703,1718290370438,-4605.22,0.00027191,2]
[329372704,1718290370449,-12098.40973595,0.00027216,2]
[329372705,1718290370459,-1000.0,0.00027238,2]
[329372706,1718290370471,-2775.13,0.00027255,2]
[329372707,1718290370491,-1848.47,0.00027259,2]
[329372708,1718290370520,-152.13270086,0.0002729,2]
[329372709,1718290370533,-500.0,0.00027397,2]
[329372710,1718290370546,-277.20486722,0.00027397,2]
[329372711,1718290370557,-500.0,0.00027397,2]
[329372712,1718290370571,-500.0,0.00027397,2]
[329372713,1718290370582,-389.91168925,0.00027397,2]
[329372714,1718290370593,-164.09,0.00027397,3]
[329372715,1718290370605,-500.0,0.00027397,3]
[329372716,1718290370633,-500.0,0.00027397,3]
[329372717,1718290370657,-500.0,0.00027397,3]
[329372718,1718290370677,-500.0,0.00027397,3]
[329372719,1718290370687,-500.0,0.00027397,3]
[329372720,1718290370703,-500.0,0.00027397,3]
[329372721,1718290370714,-500.98,0.00027397,3]
[329372722,1718290370744,-500.0,0.00027397,3]
[329372723,1718290370756,-500.0,0.00027397,3]
[329372724,1718290370783,-192.12,0.00027397,3]
[329372725,1718290370795,-500.0,0.00027397,3]
[329372726,1718290370818,-182.27,0.00027397,3]
[329372727,1718290370828,-500.0,0.00027397,3]
[329372728,1718290370838,-809.41,0.00027397,3]
[329372729,1718290370850,-507.94,0.00027397,3]
[329372730,1718290370860,-500.0,0.00027397,3]
[329372731,1718290370889,-500.0,0.00027397,3]
[329372732,1718290370900,-500.0,0.00027397,3]
[329372733,1718290370912,-500.0,0.00027397,3]
[329372734,1718290370924,-500.0,0.00027397,3]
[329372735,1718290370935,-1934.26,0.00027397,3]
[329372736,1718290370954,-544.35,0.00027397,3]
[329372737,1718290370971,-500.0,0.00027397,3]
[329372738,1718290370982,-879.88,0.00027397,3]
[329372739,1718290370994,-500.0,0.00027397,3]
[329372740,1718290371008,-500.0,0.00027397,3]
[329372741,1718290371021,-1048.93,0.00027397,3]
[329372742,1718290371034,-1012.91,0.00027397,3]
[329372743,1718290371049,-500.0,0.00027397,3]
[329372744,1718290371064,-500.0,0.00027397,3]
[329372745,1718290371085,-11632.61,0.00027397,3]
[329372746,1718290371108,-977.44,0.00027397,3]
[329372747,1718290371131,-500.0,0.00027397,3]
[329372748,1718290371142,-651.87,0.00027397,3]
[329372749,1718290371153,-639.07,0.00027397,3]
[329372750,1718290371164,-997.51,0.00027397,3]
[329372751,1718290371177,-1311.35,0.00027397,3]
[329372752,1718290371189,-643.19,0.00027397,3]
[329372753,1718290371201,-2199.7,0.00027397,3]
[329372754,1718290371213,-500.0,0.00027397,3]
[329372755,1718290371224,-1295.74,0.00027397,3]
[329372756,1718290371241,-613.68,0.00027397,3]
[329372757,1718290371258,-1323.91,0.00027397,3]
[329372758,1718290371276,-975.22,0.00027397,3]
[329372759,1718290371289,-1550.77,0.00027397,3]
[329372760,1718290371305,-500.0,0.00027397,3]
[329372761,1718290371325,-12766.99,0.00027397,3]
[329372762,1718290371337,-513.36,0.00027397,3]
[329372763,1718290371349,-500.0,0.00027397,3]
[329372764,1718290371361,-559.41,0.00027397,3]
[329372765,1718290371373,-500.0,0.00027397,3]
[329372766,1718290371390,-291.0591708,0.00027397,3]
[329372767,1718290371403,-679.33,0.00027397,3]
[329372768,1718290371437,-500.0,0.00027397,3]
[329372769,1718290371452,-3794.7,0.00027397,3]
[329372770,1718290371464,-500.0,0.00027397,3]
[329372771,1718290371481,-500.0,0.00027397,3]
[329372772,1718290371505,-500.0,0.00027397,3]
[329372773,1718290371518,-500.0,0.00027397,3]
[329372774,1718290371530,-1057.5,0.00027397,3]
[329372775,1718290371542,-500.0,0.00027397,3]
[329372776,1718290371556,-500.0,0.00027397,3]
[329372777,1718290371572,-2414.22,0.00027397,3]
[329372778,1718290371583,-500.0,0.00027397,3]
[329372779,1718290371597,-500.0,0.00027397,3]
[329372780,1718290371616,-500.0,0.00027397,3]
[329372781,1718290371628,-654.22,0.00027397,3]
[329372782,1718290371640,-500.0,0.00027397,3]
[329372783,1718290371651,-1125.9,0.00027397,3]
[329372784,1718290371663,-500.0,0.00027397,3]
[329372785,1718290371677,-941.25,0.00027397,3]
[329372786,1718290371687,-500.0,0.00027397,3]
[329372787,1718290371698,-531.14,0.00027397,3]
[329372788,1718290371709,-500.0,0.00027397,3]
[329372789,1718290371719,-500.0,0.00027397,3]
[329372790,1718290371731,-1033.7,0.00027397,3]
[329372791,1718290371742,-500.0,0.00027397,3]
[329372792,1718290371761,-500.0,0.00027397,3]
[329372793,1718290371774,-2592.34,0.00027397,3]
[329372794,1718290371792,-500.0,0.00027397,3]
[329372795,1718290371806,-500.0,0.00027397,3]
[329372796,1718290371817,-588.3,0.00027397,3]
[329372797,1718290371832,-500.0,0.00027397,3]
[329372798,1718290371844,-500.0,0.00027397,3]
[329372799,1718290371857,-1292.93,0.00027397,3]
[329372800,1718290371882,-637.83,0.00027397,3]
[329372801,1718290371897,-533.76,0.00027397,3]
[329372802,1718290371911,-501.43355103,0.00027397,2]
[329372803,1718290371924,-816.12,0.00027397,3]
[329372804,1718290372003,-2201.98,0.00027397,3]
[329372805,1718290372020,-990.35,0.00027397,3]
[329372806,1718290372049,-866.3,0.00027397,3]
[329372807,1718290372095,-1827.63,0.00027397,3]
[329372808,1718290372111,-1039.78,0.00027397,3]
[329372809,1718290372129,-1377.98,0.00027397,3]
[329372810,1718290372163,-511.34,0.00027397,3]
[329372811,1718290372177,-500.0,0.00027397,3]
[329372812,1718290372189,-1395.84,0.00027397,3]
[329372813,1718290372201,-653.41,0.00027397,3]
[329372814,1718290372212,-4825.81,0.00027397,3]
[329372815,1718290372226,-500.0,0.00027397,3]
[329372816,1718290372237,-500.0,0.00027397,3]
[329372817,1718290372250,-689.6,0.00027397,3]
[329372818,1718290372272,-2127.64,0.00027397,3]
[329372819,1718290372312,-761.09,0.00027397,3]
[329372820,1718290372323,-500.0,0.00027397,3]
[329372821,1718290372333,-587.76,0.00027397,3]
[329372822,1718290372349,-605.86,0.00027397,3]
[329372823,1718290372360,-500.0,0.00027397,3]
[329372824,1718290372410,-1177.4,0.00027397,3]
[329372825,1718290372435,-920.47,0.00027397,3]
[329372826,1718290372447,-500.0,0.00027397,3]
[329372827,1718290372460,-1386.9,0.00027397,3]
[329372828,1718290372486,-744.26,0.00027397,3]
[329372829,1718290372512,-887.49,0.00027397,3]
[329372830,1718290372523,-500.0,0.00027397,3]
[329372831,1718290372537,-593.19992603,0.00027397,3]
[329372832,1718290372628,-7491.49,0.00027397,3]
[329372833,1718290372647,-2324.66,0.00027397,3]
[329372834,1718290372663,-500.0,0.00027397,3]
[329372835,1718290372674,-1842.78,0.00027397,3]
[329372836,1718290372686,-150.59,0.00027397,2]
[329372837,1718290372703,-2875.13,0.00027397,2]
[329372838,1718290372715,-283.46,0.00027397,10]
[329372839,1718290372731,-172.39,0.00027397,2]
[329372840,1718290372741,-300.0,0.00027397,10]
[329372841,1718290372757,-7365.30209889,0.000274,60]
[329372842,1718290372771,-317.0,0.000274,2]
[329372843,1718290372782,-753.0,0.000274,2]
[329372844,1718290372795,-654.85989063,0.000274,2]
[329372845,1718290372805,-200.0,0.000274,2]
[329372846,1718290372818,-230.45,0.000274,2]
[329372847,1718290372892,-230.45,0.000274,2]
[329372848,1718290372908,-230.45,0.000274,2]
[329372849,1718290372924,-230.45,0.000274,2]
[329372850,1718290372940,-230.45,0.000274,2]
[329372851,1718290372956,-230.45,0.000274,2]
[329372852,1718290372975,-230.45,0.000274,2]
[329372853,1718290373016,-230.45,0.000274,2]
[329372854,1718290373030,-230.45,0.000274,2]
[329372855,1718290373047,-230.45,0.000274,2]
[329372856,1718290373058,-1835.0,0.000274,2]
[329372857,1718290373079,-1204.94218696,0.000275,2]
[329372858,1718290373104,-169.27885675,0.000275,2]
[329372859,1718290373116,-300.0,0.000275,2]
[329372860,1718290373128,-610.88,0.00027505,2]
[329372861,1718290373139,-10000.0,0.00027507,2]
[329372862,1718290373168,-1554.28,0.00027564,2]
[329372863,1718290373181,-5000.0,0.00027578,2]
[329372864,1718290373192,-305.571,0.00027591,2]
[329372865,1718290373211,-2100.0,0.00027591,2]
[329372866,1718290373222,-150.0,0.000276,5]
[329372867,1718290373235,-5000.0,0.00027646,2]
[329372868,1718290373247,-200.86,0.00027666,2]
[329372869,1718290373262,-500.0,0.0002767,2]
[329372870,1718290373280,-700.0,0.0002767,2]
[329372871,1718290373295,-3000.0,0.0002767,2]
[329372872,1718290373308,-500.0,0.00027671,3]
[329372873,1718290373323,-500.0,0.00027671,3]
[329372874,1718290373339,-500.0,0.00027671,3]
[329372875,1718290373357,-500.0,0.00027671,3]
[329372876,1718290373370,-500.0,0.00027671,3]
[329372877,1718290373386,-500.0,0.00027671,3]
[329372878,1718290373399,-500.98,0.00027671,3]
[329372879,1718290373411,-500.0,0.00027671,3]
[329372880,1718290373424,-398.98205868,0.00027671,3]
[329372881,1718290373437,-500.0,0.00027671,3]
[329372882,1718290373450,-182.27,0.00027671,3]
[329372883,1718290373463,-647.41664969,0.00027671,3]
[329372884,1718290373477,-809.41,0.00027671,3]
[329372885,1718290373492,-507.94,0.00027671,3]
[329372886,1718290373506,-648.96,0.00027671,3]
[329372887,1718290373520,-500.0,0.00027671,3]
[329372888,1718290373541,-631.53828252,0.00027671,3]
[329372889,1718290373553,-500.0,0.00027671,3]
[329372890,1718290373576,-500.0,0.00027671,3]
[329372891,1718290373590,-1934.26,0.00027671,3]
[329372892,1718290373608,-544.35,0.00027671,3]
[329372893,1718290373623,-240.0,0.00027671,3]
[329372894,1718290373637,-879.88,0.00027671,3]
[329372895,1718290373652,-500.0,0.00027671,3]
[329372896,1718290373674,-500.0,0.00027671,3]
[329372897,1718290373691,-1048.93,0.00027671,3]
[329372898,1718290373713,-1012.91,0.00027671,3]
[329372899,1718290373733,-500.0,0.00027671,3]
[329372900,1718290373746,-500.0,0.00027671,3]
[329372901,1718290373788,-11632.61,0.00027671,3]
[329372902,1718290373800,-977.44,0.00027671,3]
[329372903,1718290373815,-500.0,0.00027671,3]
[329372904,1718290373847,-651.87,0.00027671,3]
[329372905,1718290373858,-639.07,0.00027671,3]
[329372906,1718290373893,-997.51,0.00027671,3]
[329372907,1718290373902,-1311.35,0.00027671,3]
[329372908,1718290373920,-643.19,0.00027671,3]
[329372909,1718290373931,-2199.7,0.00027671,3]
[329372910,1718290373942,-500.0,0.00027671,3]